Cogmind - Beta 14 @@@ ROGUE MODE // 2024.12.10 @ 15:02:03 Player: SH-pl7 Result: Self-destructed Performance ------------- Evolutions (5) 2500 Regions Visited (17) 3400 Robots Destroyed (140) 700 Value Destroyed (4433) 4433 Prototype IDs (44) 880 Alien Tech Used (0) 0 Bonus (1932) 1932 TOTAL SCORE: 13845 Bonus ------- High Alert Combat Kills 99 Follower Combat Kills 813 Entered Garrisons 200 Used RIF Installer 500 Aligned with FarCom 300 A7 Reached Mainframe 300 Friendly Fire -280 Cogmind --------- Core Integrity 784/1000 Matter 32/300 Energy 99/100 System Corruption 0% Temperature Cool (0) Movement Core (50) Location -5/Factory Parts ------- > --- POWER (1) -------- (None) > --- PROPULSION (6) --- (None) > --- UTILITY (8) ------ Enhanced Optical Array Transport Network Coupler Improved Hacking Suite Improved Hacking Suite Improved Hacking Suite Experimental Hacking Suite > --- WEAPON (2) ------- (None) > --- INVENTORY (5) ---- Improved Melee Analysis Suite Advanced ECM Suite Improved Trap Extractor (0/6) Heavy Phase Cannon Chainsword Peak State ------------ > --- POWER ------------ Fission Core > --- PROPULSION ------- Cooled VTOL Module Cooled VTOL Module Cooled VTOL Module Cooled Cesium-ion Thruster Biomechanical Wings > --- UTILITY ---------- Transport Network Coupler Experimental Melee Analysis Suite Improved Hacking Suite Improved Hacking Suite Improved Hacking Suite Improved Hacking Suite Experimental Hacking Suite > --- WEAPON ----------- Heavy Phase Cannon Chainsword > --- INVENTORY -------- Diametric Drive Advanced ECM Suite Improved Light Armor Plating Improved Trap Extractor Improved Datajack [Rating: 81] Favorites ----------- Power Heavy Ion Engine Engine Heavy Ion Engine Power Core Micro Nuclear Core Propulsion Cooled VTOL Module Treads Light Treads Leg Potential Leg Wheel Armored Huge Wheel Flight Unit Cooled VTOL Module Utility Improved Hacking Suite Device Improved Trap Extractor Storage Large Storage Unit Processor Targeting Computer Hackware Improved Hacking Suite Protection Hardened Light Armor Plating Weapon Chainsword Energy Gun EM Pulse Gun Energy Cannon Ion Cannon Ballistic Gun Minigun Launcher Tiamat Missile Launcher Slashing Weapon Chainsword Piercing Weapon Lance Special Melee Weapon Improved Datajack Build | -11 -10 -10 -9 -9 -9 -8 -8 -8 -7 -7 -7 -6 -6 -6 -6 -6 -5 ------- Run | Yrd Mat Min Mat Min Exi Min Mat Gar Fac Was Fac Fac Ext Cet Arc Hub Fac Slots Evolved 10 | . . . 2 . . . 2 . 2 . . 2 . . . . 2 Power . | . . . . . . . . . . . . . . . . . . Propulsion 4 | . . . . . . . 1 . 1 . . 1 . . . . 1 Utility 6 | . . . 2 . . . 1 . 1 . . 1 . . . . 1 Weapon . | . . . . . . . . . . . . . . . . . . Parts Attached 175 | 4 19 . 12 1 2 2 1 14 57 1 22 22 13 1 1 2 1 Power 15 | . 7 . 1 . . . . . 5 . 1 1 . . . . . Engine 12 | . 7 . 1 . . . . . 4 . . . . . . . . Core 3 | . . . . . . . . . 1 . 1 1 . . . . . Reactor . | . . . . . . . . . . . . . . . . . . Propulsion 49 | 1 7 . 4 . 2 . . 2 17 . 3 8 5 . . . . Treads 8 | 1 4 . 2 . . . . 1 . . . . . . . . . Leg 13 | . 3 . . . 2 . . . 8 . . . . . . . . Wheel 5 | . . . 2 . . . . 1 2 . . . . . . . . Hover . | . . . . . . . . . . . . . . . . . . Flight 23 | . . . . . . . . . 7 . 3 8 5 . . . . Utility 67 | 1 2 . 4 1 . 2 . 3 23 1 14 11 3 . . 1 1 Device 26 | . . . 2 1 . 2 . 1 5 . 8 5 1 . . . 1 Storage 3 | 1 1 . . . . . . . 1 . . . . . . . . Processor 5 | . 1 . . . . . . . 2 . . 1 . . . 1 . Hackware 11 | . . . . . . . . . 6 . 2 2 1 . . . . Protection 22 | . . . 2 . . . . 2 9 1 4 3 1 . . . . Artifact . | . . . . . . . . . . . . . . . . . . Weapon 44 | 2 3 . 3 . . . 1 9 12 . 4 2 5 1 1 1 . Energy Gun 2 | 1 1 . . . . . . . . . . . . . . . . Energy Cannon 8 | . 1 . 1 . . . . . 2 . 2 1 1 . . . . Ballistic Gun 9 | 1 1 . 1 . . . . 4 2 . . . . . . . . Ballistic Cannon . | . . . . . . . . . . . . . . . . . . Launcher 7 | . . . . . . . . 1 1 . . 1 2 1 . 1 . Special Weapon . | . . . . . . . . . . . . . . . . . . Impact Weapon . | . . . . . . . . . . . . . . . . . . Slashing Weapon 5 | . . . . . . . . . 1 . 1 . 2 . 1 . . Piercing Weapon 8 | . . . 1 . . . 1 3 3 . . . . . . . . Special Melee Weapon 5 | . . . . . . . . 1 3 . 1 . . . . . . Unidentified Prototypes 13 | . . . 2 . . . . . 2 . 4 5 . . . . . Corrupted Parts 1 | . . . . . . 1 . . . . . . . . . . . System Corruption 4 | . . . . . . 4 . . . . . . . . . . . Parts Lost 36 | . 1 . 2 . . . . 3 18 . . 1 1 3 . 1 6 Power 5 | . 1 . . . . . . . 3 . . . . . . 1 . Propulsion 14 | . . . 2 . . . . 1 5 . . . 1 2 . . 3 Utility 13 | . . . . . . . . 2 7 . . 1 . 1 . . 2 Weapon 4 | . . . . . . . . . 3 . . . . . . . 1 Highest Loss Streak 7 | . 1 . 1 . . . . 1 7 . . 1 1 2 . 1 5 To Critical Strikes . | . . . . . . . . . . . . . . . . . . Average Slot Usage (%) 95 | . 95 100 93 100 98 100 81 98 92 100 99 99 98 88 73 78 64 Engine 5 | . 12 14 11 11 11 11 9 9 4 . . . . . . . . Core 2 | . . . . . . . . . 2 7 7 6 6 6 6 6 . Treads 5 | . 25 28 14 22 15 . . 5 . . . . . . . . . Leg 6 | . . . . . 5 22 18 18 13 . . . . . . . . Wheel 1 | . . . 6 . . . . 3 2 . . . . . . . . Flight 12 | . . . . . . . . . 9 30 30 32 31 26 20 20 15 Device 6 | . . . 11 11 11 11 9 8 5 7 7 4 3 . . . 2 Storage 5 | . 14 14 11 11 11 11 9 9 4 . . . . . . . . Processor 8 | . 13 14 11 11 11 11 9 9 8 7 7 6 6 6 6 11 11 Hackware 13 | . . . . . . . . . 13 23 24 29 31 33 33 33 28 Protection 7 | . . . 6 11 11 11 9 17 9 7 5 4 2 6 . . . Energy Gun 1 | . 7 14 4 . . . . . . . . . . . . . . Energy Cannon 3 | . 6 . 1 11 11 11 4 . 3 . 1 1 1 . . . . Ballistic Gun 4 | . 13 14 11 11 11 11 9 11 2 . . . . . . . . Slashing Weapon 1 | . . . . . . . . . . 7 7 6 6 6 3 2 . Piercing Weapon 2 | . . . 5 . . . 4 6 4 . . . . . . . . Special Melee Weapon 1 | . . . . . . . . . 2 7 5 3 . . . . . Peak Build Rating 81 | 4 8 8 20 22 40 40 41 43 60 50 62 81 76 74 56 61 62 Average Rating 43 | 3 7 8 15 20 26 38 40 40 49 50 55 71 73 62 53 59 57 On Entrance 38 | . 4 8 8 19 22 40 40 41 43 50 50 59 71 74 56 53 56 Naked Turns . | . . . . . . . . . . . . . . . . . . Heaviest Build 114 | 8 29 28 41 43 43 41 41 43 114 16 22 26 26 25 19 19 10 Greatest Support 98 | 20 40 40 40 40 60 60 60 60 98 25 28 35 37 27 19 19 10 Greatest Overweight (x) 14 | . 1 . 2 1 14 . . . 4 . . . . . . . . Average Overweight (x) . | . . . . 1 . . . . . . . . . . . . . Largest Inventory Capacity 25 | 8 15 15 15 15 15 15 15 15 25 5 5 5 5 5 5 5 5 Average Capacity 12 | 7 10 15 15 15 15 15 15 15 17 5 5 5 5 5 5 5 5 Most Carried 25 | 8 13 10 15 15 15 15 15 15 25 5 5 5 5 5 5 5 5 Average Carried 10 | 5 8 9 13 14 15 15 15 14 13 5 4 4 4 4 5 5 5 Final Capacity 15 | 8 15 15 15 15 15 15 15 15 5 5 5 5 5 5 5 5 5 Final Carried 15 | 8 9 10 15 15 15 15 15 15 5 5 5 5 5 5 5 5 5 Class Distribution -------------------- 47% | Mutant 29% | Hacker-Sprinter 9% | Hacker-Mutant 8% | Wizard-Sprinter Dominant Class ---------------- Mutant | -10/Materials Mutant | -10/Mines Mutant | -9/Materials Mutant | -9/Mines Mutant | -9/Exiles Mutant | -8/Mines Mutant | -8/Materials Mutant | -8/Garrison Mutant | -7/Factory Hacker-Sprinter | -7/Waste Hacker-Sprinter | -7/Factory Hacker-Sprinter | -6/Factory Wizard-Sprinter | -6/Extension Wizard-Sprinter | -6/Cetus Wizard-Sprinter | -6/Archives Wizard-Scout | -6/Hub_04(d) Wizard-Scout | -5/Factory Resources | -11 -10 -10 -9 -9 -9 -8 -8 -8 -7 -7 -7 -6 -6 -6 -6 -6 -5 ----------- Run | Yrd Mat Min Mat Min Exi Min Mat Gar Fac Was Fac Fac Ext Cet Arc Hub Fac Matter Collected 3400 | 169 274 . 258 67 . 50 . 326 882 . 346 300 638 90 . . . Remotely 50 | . . . . . . 50 . . . . . . . . . . . Salvage Created 5106 | . 493 . 1042 209 . 108 . 387 1818 . 187 319 520 23 . . . Parts 345 | . 39 . 66 11 . 8 . 32 119 . 15 24 30 1 . . . Haulers Intercepted 5 | . . . 2 . . . . . 2 . . . 1 . . . . Recyclers Shooed 4 | . . . . 1 . . . . . . . 1 2 . . . . Parts Field Recycled . | . . . . . . . . . . . . . . . . . . Retrieved Matter . | . . . . . . . . . . . . . . . . . . Parts Self-Destructed . | . . . . . . . . . . . . . . . . . . Prevented . | . . . . . . . . . . . . . . . . . . Kills | -11 -10 -10 -9 -9 -9 -8 -8 -8 -7 -7 -7 -6 -6 -6 -6 -6 -5 ------- Run | Yrd Mat Min Mat Min Exi Min Mat Gar Fac Was Fac Fac Ext Cet Arc Hub Fac Combat Hostiles Destroyed 93 | . 16 . 19 2 . 3 . 13 30 . 1 1 6 2 . . . Melee 29 | . . . 4 . . . . 2 21 . 1 1 . . . . . Guns 35 | . 9 . 11 . . . . 8 7 . . . . . . . . Cannons 18 | . 7 . 4 2 . 3 . . 2 . . . . . . . . AOE 11 | . . . . . . . . 3 . . . . 6 2 . . . Classes Destroyed 13 | . 4 . 3 2 . . . 1 1 . . . 2 . . . . Worker 8 | . . . . 3 . . . . 2 . . . 3 . . . . Builder 2 | . . . 1 . . . . . . . . . 1 . . . . Hauler 5 | . . . 2 . . . . . 2 . . . 1 . . . . Recycler 6 | . . . . 1 . . . . 1 . 1 1 2 . . . . Operator 6 | . 2 . . . . . . . 1 . . 2 1 . . . . Watcher 19 | . 2 . 3 . . . . . 6 . 3 3 1 1 . . . Swarmer 31 | . 9 . 1 1 . 1 . 7 7 . . . 5 . . . . Grunt 34 | . 7 . 14 1 . 2 . . 10 . . . . . . . . Sentry 13 | . . . 4 . . . . 5 4 . . . . . . . . Hunter 4 | . . . . . . . . 1 3 . . . . . . . . Programmer 8 | . . . . . . . . . 6 . 1 1 . . . . . Behemoth 1 | . . . . . . . . . . . . . 1 . . . . Cetus Guard 2 | . . . . . . . . . . . . . . 2 . . . Butcher 1 | . . . . . . . . . . . . . 1 . . . . Best Kill Streak 7 | . 6 . 3 3 . 2 . 4 7 . 1 1 5 3 . . . Combat Bots Only 7 | . 3 . 3 1 . 2 . 4 7 . 1 1 3 2 . . . Max Kills in Single Turn 3 | . 1 . 1 1 . 1 . 2 1 . 1 1 3 2 . . . Gunslinging . | . . . . . . . . . . . . . . . . . . Exploded 3 | . . . . . . . . 2 . . . . 3 2 . . . Melee 1 | . . . 1 . . . . 1 1 . 1 1 . . . . . Uniques/NPCs Destroyed . | . . . . . . . . . . . . . . . . . . Combat | -11 -10 -10 -9 -9 -9 -8 -8 -8 -7 -7 -7 -6 -6 -6 -6 -6 -5 -------- Run | Yrd Mat Min Mat Min Exi Min Mat Gar Fac Was Fac Fac Ext Cet Arc Hub Fac Hostile Shots Fired 858 | . 68 . 57 15 . 5 . 72 436 1 39 6 32 15 13 43 56 Missed 308 | . 24 . 18 1 . 4 . 24 133 1 18 4 8 7 9 27 30 Damage Taken 7131 | . 489 . 456 233 . 19 . 611 3770 . 263 129 260 278 95 111 417 Core 1260 | . 130 . 96 12 . . . 49 476 . 94 . 61 61 24 41 216 Absorbed by Shields 173 | . . . . . . . . . . . 18 . 103 52 . . . Regen/Repaired (Parts) 241 | . . . . . . . . . 115 . . 92 34 . . . . Core Remaining (%) 68 | 100 . 48 . . . 73 . 91 . . 18 . . . . 78 . Volleys Fired 241 | . 56 . 58 21 . 4 5 23 35 . 3 1 22 9 . 4 . Largest 2 | . 2 . 2 2 . 2 1 2 2 . 1 1 1 1 . 1 . Hottest 91 | . 80 . 91 91 . 91 23 50 85 . 90 90 90 46 . 46 . Shots Fired 407 | . 112 . 101 42 . 8 5 40 60 . 3 1 22 9 . 4 . Gun 280 | . 80 . 88 21 . 4 5 38 44 . . . . . . . . Cannon 93 | . 32 . 13 21 . 4 . . 15 . 3 1 4 . . . . Launcher 34 | . . . . . . . . 2 1 . . . 18 9 . 4 . Special . | . . . . . . . . . . . . . . . . . . Kinetic 226 | . 56 . 58 21 . 4 5 38 44 . . . . . . . . Thermal 117 | . 56 . 13 21 . 4 . . 15 . 3 1 4 . . . . Explosive 34 | . . . . . . . . 2 1 . . . 18 9 . 4 . Electromagnetic 30 | . . . 30 . . . . . . . . . . . . . . Robot Hit Streak 19 | . 14 . 16 5 . 7 . 7 19 . . . 10 5 . 9 . Robot Miss Streak 4 | . 4 . 3 4 . . . 3 3 . . . 2 1 . . . Penetration Max . | . . . . . . . . . . . . . . . . . . Secondary Targets 6 | . . . 1 . . . . 2 3 . . . . . . . . Max Gunslinging Chain 1 | . . . 1 . . . . 1 1 . . . . . . . . Shots Hit Robots 376 | . 64 . 77 25 . 5 . 30 110 . 9 21 24 7 . 4 . Core Hits 212 | . 33 . 35 8 . 4 . 17 53 . 5 7 21 27 . 2 . Critical Kills 1 | . . . . . . . . 1 . . . . . . . . . Critical Parts Destroyed 1 | . . . . . . . . . 1 . . . . . . . . Critical Strikes 16 | . . . 1 . . . . 2 10 . 1 2 . . . . . Destroy 2 | . . . . . . . . 1 1 . . . . . . . . Sever 3 | . . . . . . . . . . . 1 2 . . . . . Impale 11 | . . . 1 . . . . 1 9 . . . . . . . . Melee Attacks 468 | . . . 19 . . . 1 129 154 . 55 55 17 37 1 . . Impact . | . . . . . . . . . . . . . . . . . . Slashing 168 | . . . . . . . . . 3 . 55 55 17 37 1 . . Piercing 298 | . . . 19 . . . 1 129 149 . . . . . . . . Sneak Attacks 20 | . . . 2 . . . . . 10 . 1 5 2 . . . . Combat Hostiles . | . . . . . . . . . . . . . . . . . . Follow-up Attacks . | . . . . . . . . . . . . . . . . . . Damage Inflicted 12721 | . 762 . 1358 455 . 113 . 848 3607 . 413 1218 2774 1042 . 131 . Guns 2183 | . 442 . 628 168 . 31 . 353 561 . . . . . . . . Cannons 1170 | . 320 . 244 286 . 82 . . 238 . . . . . . . . Explosions 3638 | . . . 29 . . . . 252 . . . . 2184 1042 . 131 . Melee 5606 | . . . 449 . . . . 243 2793 . 413 1118 590 . . . . Ramming 124 | . . . 8 1 . . . . 15 . . 100 . . . . . Kinetic 1741 | . 270 . 358 168 . 31 . 353 561 . . . . . . . . Thermal 1371 | . 492 . 273 286 . 82 . . 238 . . . . . . . . Explosive 3609 | . . . . . . . . 252 . . . . 2184 1042 . 131 . Electromagnetic 270 | . . . 270 . . . . . . . . . . . . . . Impact . | . . . . . . . . . . . . . . . . . . Slashing 2121 | . . . . . . . . . . . 413 1118 590 . . . . Piercing 3485 | . . . 449 . . . . 243 2793 . . . . . . . . Highest Corruption 15 | . . . . . . 4 . . 13 13 15 5 6 6 6 6 . Average Corruption 9 | . . . . . . 4 . . 8 13 13 5 5 6 6 6 . Corruption Purged . | . . . . . . . . . . . . . . . . . . Corruption Blocked . | . . . . . . . . . . . . . . . . . . Effects 223 | . . . . . . . . . 123 3 64 . 25 6 . 2 . Message Errors 60 | . . . . . . . . . 37 1 18 . 3 . . 1 . Matter Fused 59 | . . . . . . . . . 29 . 18 . 10 2 . . . Heat Flow Errors 21 | . . . . . . . . . 14 . 3 . 1 3 . . . Energy Discharges 27 | . . . . . . . . . 13 . 8 . 4 1 . 1 . Parts Rejected 2 | . . . . . . . . . 1 1 . . . . . . . Parts Fused 4 | . . . . . . . . . 3 . 1 . . . . . . Data Loss (minor) 27 | . . . . . . . . . 17 . 6 . 4 . . . . Data Loss (major) 9 | . . . . . . . . . 6 . 2 . 1 . . . . Misfires 1 | . . . . . . . . . . . . . 1 . . . . Alerts 1 | . . . . . . . . . . . 1 . . . . . . Misdirections 11 | . . . . . . . . . 3 1 7 . . . . . . Weapon Failures 1 | . . . . . . . . . . . . . 1 . . . . Overload Shots . | . . . . . . . . . . . . . . . . . . Overflow Damage 700 | . 16 . 11 . . . . 37 317 . . 30 262 27 . . . Projectiles 16 | . 16 . . . . . . . . . . . . . . . . Explosions 161 | . . . . . . . . 37 . . . . 97 27 . . . Melee 523 | . . . 11 . . . . . 317 . . 30 165 . . . . Knockbacks 1 | . . . . . . . . . 1 . . . . . . . . Impact 1 | . . . . . . . . . 1 . . . . . . . . Kinetic . | . . . . . . . . . . . . . . . . . . Secondary . | . . . . . . . . . . . . . . . . . . Self-Inflicted Damage 225 | . . . . . . . . 36 23 . . 100 . 66 . . . Shots 3 | . . . . . . . . 1 1 . . . . 1 . . . Rammed 3 | . . . 1 2 . . . . . . . . . . . . . Targets Rammed 5 | . . . 1 2 . . . . 2 . . . . . . . . Kicked 2 | . . . . . . . . . 2 . . . . . . . . Crushed . | . . . . . . . . . . . . . . . . . . Highest Temperature 442 | . 200 . 132 300 . 119 . 21 352 44 186 442 185 176 27 15 . Average Temperature 67 | . 60 . 37 76 . 53 . 7 95 21 38 102 76 66 14 8 . Received Heat Transfer 1294 | . 120 . 204 66 . 9 . 153 630 . 25 . 30 . 9 21 27 Effects 4 | . . . . . . . . . 1 . . 3 . . . . . Shutdowns 1 | . . . . . . . . . . . . 1 . . . . . Interference 3 | . . . . . . . . . 1 . . 2 . . . . . Siege Activations . | . . . . . . . . . . . . . . . . . . Robots Corrupted . | . . . . . . . . . . . . . . . . . . Combat Hostiles . | . . . . . . . . . . . . . . . . . . Parts Fried 1 | . . . 1 . . . . . . . . . . . . . . Impact Corruptions . | . . . . . . . . . . . . . . . . . . Robots Melted . | . . . . . . . . . . . . . . . . . . Combat Hostiles . | . . . . . . . . . . . . . . . . . . Parts Melted 3 | . 2 . . . . . . . 1 . . . . . . . . Heat Transferred 2714 | . 1184 . 494 518 . 148 . . 370 . . . . . . . . Parts Sabotaged . | . . . . . . . . . . . . . . . . . . Parts Stolen . | . . . . . . . . . . . . . . . . . . Parts Stripped . | . . . . . . . . . . . . . . . . . . Power Chain Reactions 2 | . . . 1 . . . . . . . . . . . . . 1 Alert | -11 -10 -10 -9 -9 -9 -8 -8 -8 -7 -7 -7 -6 -6 -6 -6 -6 -5 ------- Run | Yrd Mat Min Mat Min Exi Min Mat Gar Fac Was Fac Fac Ext Cet Arc Hub Fac Peak Influence 640 | . 342 89 518 282 . 123 48 577 494 133 235 183 640 388 212 105 115 Initial 302 | . . 89 34 201 . . 47 31 302 88 93 75 26 267 151 74 46 Average 202 | . 155 89 239 186 . 103 47 327 262 128 71 75 222 357 174 93 59 Maximum Alert Level 2 | . 1 . 2 1 . . . 2 2 . 1 . 2 1 1 . . Low Security (%) 51 | 100 58 100 34 47 . 100 100 14 31 100 92 100 57 . 72 100 100 Level 1 36 | . 41 . 54 52 . . . 32 54 . 7 . 19 100 27 . . Level 2 11 | . . . 10 . . . . 52 13 . . . 23 . . . . Level 3 . | . . . . . . . . . . . . . . . . . . Level 4 . | . . . . . . . . . . . . . . . . . . Level 5 . | . . . . . . . . . . . . . . . . . . High Security . | . . . . . . . . . . . . . . . . . . Max Security . | . . . . . . . . . . . . . . . . . . Squads Dispatched 33 | . 3 . 1 . . . . . 14 . 6 6 1 . . . 2 Investigation 11 | . . . 1 . . . . . 6 . 1 2 . . . . 1 Extermination 7 | . . . . . . . . . 5 . 1 1 . . . . . Reinforcement 15 | . 3 . . . . . . . 3 . 4 3 1 . . . 1 Assault . | . . . . . . . . . . . . . . . . . . Garrison . | . . . . . . . . . . . . . . . . . . Intercept . | . . . . . . . . . . . . . . . . . . Searches Triggered 1 | . . . . . . . . . 1 . . . . . . . . Construction Impeded . | . . . . . . . . . . . . . . . . . . Haulers Reinforced 1 | . . . . . . . . . 1 . . . . . . . . Active Scanning Responses . | . . . . . . . . . . . . . . . . . . Cargo Convoy Interrupts 2 | . . . . . . . . . . . 1 1 . . . . . Stealth | -11 -10 -10 -9 -9 -9 -8 -8 -8 -7 -7 -7 -6 -6 -6 -6 -6 -5 --------- Run | Yrd Mat Min Mat Min Exi Min Mat Gar Fac Was Fac Fac Ext Cet Arc Hub Fac Distress Signals 15 | . 4 . 6 . . . . . 1 . 1 . . 2 . . 1 Communications Jammed 2 | . . . . . . . . . . . . 2 . . . . . Distress Signals 2 | . . . . . . . . . . . . 2 . . . . . Times Spotted 252 | . 30 . 38 4 . 7 . 13 72 6 23 15 17 6 4 2 15 Peak Tracking Total 9 | . 5 . 5 2 . 3 . 4 9 6 5 2 5 5 4 1 7 Tactical Retreats 20 | . 1 . 5 . . 1 . 1 2 . 6 1 1 . . . 2 Traps | -11 -10 -10 -9 -9 -9 -8 -8 -8 -7 -7 -7 -6 -6 -6 -6 -6 -5 ------- Run | Yrd Mat Min Mat Min Exi Min Mat Gar Fac Was Fac Fac Ext Cet Arc Hub Fac Traps Triggered 27 | . 4 . 1 2 . . . 8 4 . 3 2 3 . . . . Indirectly . | . . . . . . . . . . . . . . . . . . Trap Hack Attempts 39 | . . . . . . . . 5 20 . 14 . . . . . . Triggered 1 | . . . . . . . . . 1 . . . . . . . . Disarmed 2 | . . . . . . . . 1 1 . . . . . . . . Reprogrammed 11 | . . . . . . . . . 4 . 7 . . . . . . Reused 9 | . . . . . . . . . . . 5 4 . . . . . Traps Extracted 13 | . . . . . . . . . 4 . 8 1 . . . . . Installed 11 | . . . . . . . . . . . 6 5 . . . . . Triggered 9 | . . . . . . . . . . . 5 4 . . . . . Most Traps Carried 6 | . . . . . . . . . 3 2 6 4 . . . . . Objects Rigged 10 | . . . . . . . . . . . . . . . . . 10 Machines | -11 -10 -10 -9 -9 -9 -8 -8 -8 -7 -7 -7 -6 -6 -6 -6 -6 -5 ---------- Run | Yrd Mat Min Mat Min Exi Min Mat Gar Fac Was Fac Fac Ext Cet Arc Hub Fac Machines Disabled 10 | . 2 . 2 . . . . 2 . . . . 3 1 . . . Max in Single Turn 2 | . 1 . 1 . . . . 1 . . . . 2 1 . . . Garrison Access 7 | . . . . . . . . . 2 . 3 1 . . . . 1 Garrison Relay 1 | . . . . . . . . 1 . . . . . . . . . Machines Repaired . | . . . . . . . . . . . . . . . . . . Machines Dismantled . | . . . . . . . . . . . . . . . . . . Machines Sabotaged . | . . . . . . . . . . . . . . . . . . Overloaded Fab Kills 5 | . . . . . . . . . . . . . . . . . 5 Hacking | -11 -10 -10 -9 -9 -9 -8 -8 -8 -7 -7 -7 -6 -6 -6 -6 -6 -5 --------- Run | Yrd Mat Min Mat Min Exi Min Mat Gar Fac Was Fac Fac Ext Cet Arc Hub Fac Machines Accessed 90 | . 4 . 7 1 1 . 1 3 24 . 15 11 13 3 . 3 4 Terminals 64 | . 4 . 6 . . . . 3 15 . 11 6 11 3 . 3 2 Fabricators 8 | . . . . . . . . . 4 . 1 2 . . . . 1 Repair Stations 5 | . . . . . . . . . 2 . . 2 1 . . . . Recycling Units 1 | . . . . . . . . . . . . . 1 . . . . Scanalyzers 2 | . . . 1 . . . . . 1 . . . . . . . . Garrison Access 8 | . . . . . . . 1 . 2 . 3 1 . . . . 1 Total Hacks 210 | . 15 . 23 1 1 . 2 6 64 . 29 32 21 6 . 5 5 Successful 132 | . 6 . 14 1 1 . 1 1 36 . 18 23 17 4 . 5 5 Failed 78 | . 9 . 9 . . . 1 5 28 . 11 9 4 2 . . . Catastrophic 14 | . 3 . . . . . . 3 7 . 1 . . . . . . Database Lockouts . | . . . . . . . . . . . . . . . . . . Manual 96 | . 12 . 9 . 1 . . . 33 . 15 15 3 1 1 2 4 Terminals 160 | . 15 . 21 . . . . 6 44 . 23 20 17 6 . 5 3 Fabricators 19 | . . . . . . . . . 11 . 3 4 . . . . 1 Repair Stations 13 | . . . . . . . . . 4 . . 7 2 . . . . Recycling Units 2 | . . . . . . . . . . . . . 2 . . . . Scanalyzers 5 | . . . 2 . . . . . 3 . . . . . . . . Garrison Access 9 | . . . . . . . 2 . 2 . 3 1 . . . . 1 Terminal Hacks 68 | . 3 . 9 1 1 . . 1 10 . 7 12 13 4 . 5 2 Record 5 | . . . . . . . . . . . . . . 3 . 2 . Part Schematic 1 | . . . . . . . . . 1 . . . . . . . . Robot Schematic 1 | . . . . . . . . . . . . . . . . 1 . Prototype ID Bank 4 | . . . 2 . . . . . . . . 1 . . . 1 . Open Door 9 | . . . . 1 . . . . . . . 1 6 1 . . . Level Access Points 2 | . . . . . . . . . . . 1 . 1 . . . . Branch Access Points 1 | . . . . . . . . . . . . . 1 . . . . Emergency Access Points 1 | . . . . . . . . 1 . . . . . . . . . Terminal Index 3 | . . . . . . . . . 1 . 1 1 . . . . . Fabricator Index 2 | . . . . . . . . . . . 1 1 . . . . . Recycling Unit Index 1 | . . . . . . . . . . . . . . . . . 1 Alert Level 2 | . 1 . 1 . . . . . . . . . . . . . . Unreport Threat 5 | . . . . . . . . . 2 . 1 1 . . . . 1 Locate Traps 7 | . 1 . 1 . . . . . 1 . 1 1 2 . . . . Surveillance Status 1 | . . . . . . . . . . . . . 1 . . . . Patrol Status 1 | . . . 1 . . . . . . . . . . . . . . Recall Investigation 7 | . . . 1 . . . . . 3 . 1 2 . . . . . Recall Extermination 2 | . . . . . . . . . 1 . . 1 . . . . . Recall Reinforcements 4 | . . . . . . . . . . . . 2 2 . . . . Hauler Manifests 3 | . . . 1 . . . . . 1 . 1 . . . . . . Registered Components 1 | . 1 . . . . . . . . . . . . . . . . Registered Prototypes 1 | . . . . . . . . . . . . . . . . 1 . Zone Layout 3 | . . . 2 . . . . . . . . 1 . . . . . Derelict Proto ID Bank 1 | . . . . . 1 . . . . . . . . . . . . Fabricator Hacks 15 | . . . . . . . . . 9 . 3 3 . . . . . Network Status 2 | . . . . . . . . . 1 . . 1 . . . . . Load Schematic 6 | . . . . . . . . . 4 . 1 1 . . . . . Build 7 | . . . . . . . . . 4 . 2 1 . . . . . Repair Station Hacks 11 | . . . . . . . . . 4 . . 5 2 . . . . Scan Component 6 | . . . . . . . . . 2 . . 3 1 . . . . Repair 5 | . . . . . . . . . 2 . . 2 1 . . . . Recycling Unit Hacks 2 | . . . . . . . . . . . . . 2 . . . . Report Inventory 1 | . . . . . . . . . . . . . 1 . . . . Retrieve Components 1 | . . . . . . . . . . . . . 1 . . . . Scanalyzer 5 | . . . 2 . . . . . 3 . . . . . . . . Insert Component 2 | . . . 1 . . . . . 1 . . . . . . . . Analyze 3 | . . . 1 . . . . . 2 . . . . . . . . Garrison Access Hacks 8 | . . . . . . . 1 . 2 . 3 1 . . . . 1 Unlock Access 1 | . . . . . . . 1 . . . . . . . . . . Seal Access 7 | . . . . . . . . . 2 . 3 1 . . . . 1 Unauthorized Hacks 23 | . 3 . 3 . . . . . 8 . 5 2 . . . . 2 Terminals 22 | . 3 . 3 . . . . . 8 . 5 2 . . . . 1 Assimilate 7 | . . . . . . . . . 5 . 2 . . . . . . Botnet 14 | . 3 . 3 . . . . . 3 . 3 2 . . . . . Detonate 1 | . . . . . . . . . . . . . . . . . 1 Fabricators 1 | . . . . . . . . . . . . . . . . . 1 Overload 1 | . . . . . . . . . . . . . . . . . 1 Repair Stations . | . . . . . . . . . . . . . . . . . . Recycling Units . | . . . . . . . . . . . . . . . . . . Scanalyzers . | . . . . . . . . . . . . . . . . . . Garrison Access . | . . . . . . . . . . . . . . . . . . Data Cores Recovered 1 | . . . . . . . . . . . . 1 . . . . . Used . | . . . . . . . . . . . . . . . . . . Hacking Detections 63 | . 3 . 7 . . . 1 3 21 . 8 8 6 3 . 2 1 Full Trace Events 9 | . . . . . . . . . 6 . 1 2 . . . . . Feedback Events . | . . . . . . . . . . . . . . . . . . Feedback Blocked . | . . . . . . . . . . . . . . . . . . Robot Schematics Acquired 1 | . . . . . . . . . . . . . . . . 1 . Robots Built . | . . . . . . . . . . . . . . . . . . Authchips . | . . . . . . . . . . . . . . . . . . Time . | . . . . . . . . . . . . . . . . . . Total Robot Build Rating . | . . . . . . . . . . . . . . . . . . Part Schematics Acquired 3 | . . . 1 . . . . . 2 . . . . . . . . Parts Built 8 | . . . . . . . . . 4 . 3 1 . . . . . Authchips . | . . . . . . . . . . . . . . . . . . Time 617 | . . . . . . . . . 371 . 179 67 . . . . . Total Part Build Rating 36 | . . . . . . . . . 19 . 13 4 . . . . . Parts Repaired 5 | . . . . . . . . . 2 . . 2 1 . . . . Time 164 | . . . . . . . . . 94 . . 35 35 . . . . Parts Recycled . | . . . . . . . . . . . . . . . . . . Recycled Matter . | . . . . . . . . . . . . . . . . . . Retrieved Matter . | . . . . . . . . . . . . . . . . . . Retrieved Components 1 | . . . . . . . . . . . . . 1 . . . . Parts Scanalyzed 2 | . . . 1 . . . . . 1 . . . . . . . . Part Schematics Acquired 2 | . . . 1 . . . . . 1 . . . . . . . . Parts Damaged . | . . . . . . . . . . . . . . . . . . Bothacking | -11 -10 -10 -9 -9 -9 -8 -8 -8 -7 -7 -7 -6 -6 -6 -6 -6 -5 ------------ Run | Yrd Mat Min Mat Min Exi Min Mat Gar Fac Was Fac Fac Ext Cet Arc Hub Fac Used RIF Installer 1 | . . . . . . . . 1 . . . . . . . . . Robots Hacked 1 | . . . . . . . . . 1 . . . . . . . . Non-combat 1 | . . . . . . . . . 1 . . . . . . . . Combat . | . . . . . . . . . . . . . . . . . . Robot Hacks Applied 1 | . . . . . . . . . 1 . . . . . . . . parse_system 1 | . . . . . . . . . 1 . . . . . . . . Relay Couplers Released 7 | . . . . . . . . 4 3 . . . . . . . . Machine Destruction 4 | . . . . . . . . 4 . . . . . . . . . Programmers 3 | . . . . . . . . . 3 . . . . . . . . Fabnet Peak Effective % . | . . . . . . . . . . . . . . . . . . Robots Rewired 8 | . . . . . . . . . . . . . 8 . . . . Allies Hacked . | . . . . . . . . . . . . . . . . . . Hacks Repelled . | . . . . . . . . . . . . . . . . . . Allies | -11 -10 -10 -9 -9 -9 -8 -8 -8 -7 -7 -7 -6 -6 -6 -6 -6 -5 -------- Run | Yrd Mat Min Mat Min Exi Min Mat Gar Fac Was Fac Fac Ext Cet Arc Hub Fac Total Allies 26 | . . . . 5 . . . . 4 . 2 . 15 . . . . Largest Group 9 | . . . . 5 5 3 . . 3 . 1 . 9 4 . . . Highest-Rated Group 378 | . . . . 82 82 37 . . 78 . 26 . 378 246 . . . Highest-Rated Ally 159 | . . . . 31 31 16 . . 26 . 26 . 159 153 . . . Total Orders 3 | . . . . . . . . . 3 . . . . . . . . STAY 2 | . . . . . . . . . 2 . . . . . . . . FOLLOW 1 | . . . . . . . . . 1 . . . . . . . . Ally Attacks 157 | . . . . 7 . 13 . . . . . . 126 11 . . . Total Damage 2974 | . . . . 83 . 153 . . . . . . 2512 226 . . . Kills 24 | . . . . 2 . 3 . . . . . . 17 2 . . . Allies Corrupted . | . . . . . . . . . . . . . . . . . . Allies Melted . | . . . . . . . . . . . . . . . . . . Intel | -11 -10 -10 -9 -9 -9 -8 -8 -8 -7 -7 -7 -6 -6 -6 -6 -6 -5 ------- Run | Yrd Mat Min Mat Min Exi Min Mat Gar Fac Was Fac Fac Ext Cet Arc Hub Fac Robot Analysis Total . | . . . . . . . . . . . . . . . . . . Derelict Logs Recovered 1 | . . . . 1 . . . . . . . . . . . . . Drone Launches . | . . . . . . . . . . . . . . . . . . Drone Recoveries . | . . . . . . . . . . . . . . . . . . Exploration | -11 -10 -10 -9 -9 -9 -8 -8 -8 -7 -7 -7 -6 -6 -6 -6 -6 -5 ------------- Run | Yrd Mat Min Mat Min Exi Min Mat Gar Fac Was Fac Fac Ext Cet Arc Hub Fac Turns Passed 15281 | 118 1257 198 1168 767 449 124 46 1245 5460 74 1613 1349 830 230 18 58 277 Spaces Moved 19977 | 85 623 124 538 284 229 90 24 857 6299 230 4143 3299 1767 432 60 120 773 Core 43 | 30 . . . . 3 . . . . . . . . . . . 10 Treads 1548 | 55 617 124 341 284 127 . . . . . . . . . . . . Legs 2304 | . 6 . . . 99 90 24 857 1228 . . . . . . . . Wheels 1124 | . . . 197 . . . . . 927 . . . . . . . . Hover . | . . . . . . . . . . . . . . . . . . Flight 14958 | . . . . . . . . . 4144 230 4143 3299 1767 432 60 120 763 Fastest Speed 12 | 50 120 160 95 240 90 90 90 90 26 20 16 12 12 20 23 23 32 Average Speed 54 | 121 160 160 145 240 182 90 90 90 65 25 24 23 24 25 23 23 32 Slowest Speed 750 | 160 240 160 240 240 750 90 90 90 182 26 26 27 28 27 23 23 50 Overloaded Moves 485 | . . . . . . . . . . 18 47 112 11 60 60 120 57 Propulsion Burnouts 1 | . . . . . . . . . . . . . . . . . 1 Robots Hopped 106 | . . . . . . . . . 19 3 17 45 19 . . . 3 Cave-ins Triggered . | . . . . . . . . . . . . . . . . . . Exploration Rate (%) 52 | 5 96 38 57 66 60 22 4 64 77 71 73 45 83 91 68 12 21 Regions Visited 17 Branch Regions 8 Pre-discovered Areas . | . . . . . . . . . . . . . . . . . . Known Exits Taken 4 | . . . . . . . 1 . . . 1 . 1 . . 1 . Unknown Exits Taken 10 | 1 1 1 1 1 1 1 . . . . . 1 . 1 1 . . Scrap Searched . | . . . . . . . . . . . . . . . . . . Spaces Dug 131 | . . . 1 . . . 1 . 48 . 44 29 7 . 1 . . Terrain Destroyed 463 | . . . 1 . . . 1 23 53 . 44 30 137 116 1 57 . Melee 124 | . . . 1 . . . 1 . 48 . 41 28 4 . 1 . . Projectile 9 | . . . . . . . . 1 . . 3 1 4 . . . . AOE 329 | . . . . . . . . 22 5 . . . 129 116 . 57 . Terrain Rammed 1 | . . . . . . . . . . . . 1 . . . . . Walls Destroyed 1 | . . . . . . . . . . . . 1 . . . . . Machines Disabled . | . . . . . . . . . . . . . . . . . . Actions | -11 -10 -10 -9 -9 -9 -8 -8 -8 -7 -7 -7 -6 -6 -6 -6 -6 -5 --------- Run | Yrd Mat Min Mat Min Exi Min Mat Gar Fac Was Fac Fac Ext Cet Arc Hub Fac Total 23162 | 98 779 124 811 326 260 123 41 1113 7298 241 4631 3746 2087 483 61 143 797 Wait 2113 | 2 70 . 156 15 28 28 11 49 686 14 378 378 251 3 . 18 26 Move 19769 | 84 622 123 537 283 228 89 23 855 6261 224 4109 3216 1739 431 59 119 767 Hop 85 | . . . . . . . . . 19 2 16 37 8 . . . 3 Pick Up 77 | 8 10 1 16 2 . . . 6 22 . 5 4 3 . . . . Fast Attach 57 | 4 2 . 3 1 2 . . 2 21 1 6 8 5 . . 1 1 Attach 37 | . 9 . 3 . . . . 3 17 . 1 2 2 . . . . Detach 13 | . . . . . . . . . 9 . . 2 1 1 . . . Swap 81 | . 8 . 6 . . 2 1 9 19 . 15 12 6 1 1 1 . Drop 78 | . 2 . 12 2 2 . . 4 33 . 10 7 5 1 . . . Fire 241 | . 56 . 58 21 . 4 5 23 35 . 3 1 22 9 . 4 . Melee 468 | . . . 19 . . . 1 129 154 . 55 55 17 37 1 . . Ram 1 | . . . . . . . . . . . . 1 . . . . . Kick 2 | . . . . . . . . . 2 . . . . . . . . Crush 3 | . . . 1 2 . . . . . . . . . . . . . Escape Stasis 73 | . . . . . . . . 28 . . 13 18 14 . . . . Rewire 14 | . . . . . . . . . . . . . 14 . . . . Trap 50 | . . . . . . . . 5 20 . 20 5 . . . . . Miscellaneous . | . . . . . . . . . . . . . . . . . . Route ------- -11/Scrapyard -10/Materials (discovered 5 exits: *Mat x3 / [*Min x2]) -10/Mines -9/Materials (discovered 3 exits: *Mat / *Min x2) -9/Mines (discovered 2 exits: *Mat / *Exi) -9/Exiles (discovered 2 exits: [*Min x2]) -8/Mines -8/Materials -8/Garrison (discovered 2 exits: *Fac x2) -7/Factory (discovered 6 exits: *Fac x3 / [*Sto] / [*Low x2]) -7/Waste -7/Factory (discovered 8 exits: *Fac x4 / [*Sto x2] / [*Low x2]) -6/Factory (discovered 3 exits: *Fac / [*Low] / *Ext) -6/Extension (discovered 3 exits: *Fac x2 / *Cet) -6/Cetus (discovered 2 exits: *Fac / *Arc) -6/Archives -6/Hub_04(d) -5/Factory History --------- Turn | Location | Event 9 | -11/Scrapyard | Discovered new exit (range 16) 119 | -11/Scrapyard | Entered Materials 305 | -10/Materials | Build established: Mutant 443 | -10/Materials | Discovered new exit (range 10) 647 | -10/Materials | Discovered new exit (range 12) 820 | -10/Materials | Discovered new exit (range 15) 938 | -10/Materials | Discovered new exit (range 4) 1210 | -10/Materials | Core integrity fell below 50% 1264 | -10/Materials | Discovered new exit (range 13) 1376 | -10/Materials | Entered Mines 1535 | -10/Mines | A weapon hastily lodged in a ceiling crevice suddenly fell to the ground 1557 | -10/Mines | Discovered new exit (range 10) 1574 | -10/Mines | Entered Materials 1574 | -9/Materials | Evolved 2 slots: Utility x2 1575 | -9/Materials | Discovered new exit (range 15) 2016 | -9/Materials | Discovered new exit (range 16) 2337 | -9/Materials | Discovered new exit (range 16) 2742 | -9/Materials | Entered Mines 2769 | -9/Mines | Assisted by bots powering up and referring to "LRC-V3" 3009 | -9/Mines | Met a Derelict who couldn't figure out how to use a Trap Extractor 3193 | -9/Mines | Learned Materials emergency access door positions 3193 | -9/Mines | Discovered new exit (range 8) 3494 | -9/Mines | Deemed a non-threat by the Exiles lab entrance 3494 | -9/Mines | Discovered new exit (range 5) 3509 | -9/Mines | Entered Exiles 3509 | -9/Exiles | Accompanied by 5 allies 3539 | -9/Exiles | Led the pair of lost Derelicts to a safe place 3541 | -9/Exiles | Discovered new exit (range 15) 3569 | -9/Exiles | Met 8R-AWN 3608 | -9/Exiles | Met EX-HEX 3687 | -9/Exiles | Met EX-BIN 3721 | -9/Exiles | Aligned with FarCom system 3723 | -9/Exiles | Given EX-Vault access code 3805 | -9/Exiles | Opened EX-Vault 3838 | -9/Exiles | Found Potential Leg 3841 | -9/Exiles | Found Potential Leg 3859 | -9/Exiles | Warned to stay clear of 0b10 Research branches 3872 | -9/Exiles | Exiles lab attacked by MAIN.C 3921 | -9/Exiles | Discovered new exit (range 11) 3958 | -9/Exiles | Left Exiles lab with Potential Leg 3958 | -9/Exiles | Entered Mines 3958 | -8/Mines | Accompanied by 3 allies 4035 | -8/Mines | Discovered new exit (range 6) 4037 | -8/Mines | Lost 4 allies 4082 | -8/Mines | Entered Materials 4082 | -8/Materials | Evolved 2 slots: Propulsion x1, Utility x1 4127 | -8/Materials | Identified exit to Garrison 4128 | -8/Materials | Entered Garrison 4160 | -8/Garrison | Triggered checkpoint 4294 | -8/Garrison | Triggered checkpoint 4356 | -8/Garrison | Discovered new exit (range 9) 4440 | -8/Garrison | Triggered checkpoint 4546 | -8/Garrison | Triggered checkpoint 4605 | -8/Garrison | Discovered new exit (range 10) 4696 | -8/Garrison | Triggered checkpoint 4841 | -8/Garrison | Installed Relay Interface Framework 5328 | -8/Garrison | Garrison Relay disabled 5373 | -8/Garrison | Entered Factory 5373 | -7/Factory | Evolved 2 slots: Propulsion x1, Utility x1 5690 | -7/Factory | Build established: Scavenger-Mutant 5892 | -7/Factory | Lost 7 parts (1p1n3u2w) 5895 | -7/Factory | Destroyed 7 combat bots 5897 | -7/Factory | Discovered new exit (range 9) 6219 | -7/Factory | Discovered new exit (range 16) 6377 | -7/Factory | Build established: Hacker-Mutant 6722 | -7/Factory | Discovered new exit (range 11) 6978 | -7/Factory | Noticed a derelict Sapper rigging charges 7751 | -7/Factory | Build established: Mutant 7797 | -7/Factory | Discovered new exit (range 16) 8097 | -7/Factory | System corruption reached 10% 8144 | -7/Factory | Discovered new exit (range 6) 8204 | -7/Factory | Core integrity fell below 50% 8270 | -7/Factory | Discovered new exit (range 12) 8416 | -7/Factory | Lost 4 parts (1p2n1u) 8886 | -7/Factory | Fabricated Cld. VTOL Module? 9401 | -7/Factory | Build established: Hacker-Sprinter 9608 | -7/Factory | Fabricated Imp. Hacking Suite? 9619 | -7/Factory | Repaired Lance? 10050 | -7/Factory | Fabricated Imp. Hacking Suite? 10222 | -7/Factory | Fabricated Imp. Hacking Suite? 10573 | -7/Factory | Search patrols dispatched 10810 | -7/Factory | Repaired Imp. Light Armor Plating 10833 | -7/Factory | Manually triggered Chute Trap 10833 | -7/Factory | Sucked down chute 10833 | -7/Factory | Entered Waste 10836 | -7/Waste | Spotted C-40 Crusher 10837 | -7/Waste | Spotted C-40 Crusher 10838 | -7/Waste | Spotted C-40 Crusher 10839 | -7/Waste | Spotted C-40 Crusher 10840 | -7/Waste | Spotted C-40 Crusher 10847 | -7/Waste | Spotted C-40 Crusher 10904 | -7/Waste | Discovered new exit (range 14) 10907 | -7/Waste | Entered Factory 11269 | -7/Factory | Discovered new exit (range 6) 11291 | -7/Factory | Discovered new exit (range 14) 11580 | -7/Factory | Cargo convoy interrupted 11696 | -7/Factory | Discovered new exit (range 5) 11725 | -7/Factory | Discovered new exit (range 10) 11791 | -7/Factory | Discovered new exit (range 6) 11896 | -7/Factory | Discovered new exit (range 15) 11921 | -7/Factory | Identified exit to Factory 12025 | -7/Factory | Fabricated Plasma Cannon (x2) 12125 | -7/Factory | Fabricated Imp. Hacking Suite (x1) 12460 | -7/Factory | Core integrity fell below 20% 12520 | -7/Factory | Entered another Factory area 12520 | -6/Factory | Evolved 2 slots: Propulsion x1, Utility x1 12578 | -6/Factory | Discovered new exit (range 12) 12803 | -6/Factory | Repaired Imp. Light Armor Plating 12822 | -6/Factory | Discovered new exit (range 4) 13175 | -6/Factory | Repaired Cld. VTOL Module 13443 | -6/Factory | Cargo convoy interrupted 13472 | -6/Factory | Found Prototype Hackware 13472 | -6/Factory | Identified Exp. Hacking Suite 13476 | -6/Factory | Found Prototype Processor 13476 | -6/Factory | Identified Exp. Melee Analysis Suite 13603 | -6/Factory | Fabricated Cld. VTOL Module (x1) 13777 | -6/Factory | Build established: Wizard-Sprinter 13863 | -6/Factory | Discovered new exit (range 6) 13869 | -6/Factory | Entered Extension 13902 | -6/Extension | Spotted B-75 Beast 13995 | -6/Extension | Rescued a captive Derelict 14084 | -6/Extension | Rescued A7 14092 | -6/Extension | Rescued a captive Derelict 14139 | -6/Extension | Rescued a captive Derelict 14143 | -6/Extension | Rescued a captive Derelict 14311 | -6/Extension | Disrupted transfer network 14440 | -6/Extension | Destroyed B-75 Beast 14476 | -6/Extension | Spotted B-75 Beast 14505 | -6/Extension | Allies destroyed B-75 Beast 14514 | -6/Extension | Discovered new exit (range 3) 14526 | -6/Extension | Lost 4 allies 14541 | -6/Extension | Discovered new exit (range 16) 14541 | -6/Extension | Discovered new exit (range 15) 14565 | -6/Extension | Rescued a captive Derelict 14566 | -6/Extension | Rescued a captive Derelict 14586 | -6/Extension | Identified exit to Cetus 14597 | -6/Extension | Identified exit to Factory 14651 | -6/Extension | Repaired Cld. VTOL Module 14699 | -6/Extension | Entered Cetus 14699 | -6/Cetus | Accompanied by 4 allies (A7) 14704 | -6/Cetus | Acquired a Cetus Manufacturing Module code from A7 14704 | -6/Cetus | Spotted Cetus Guard 14704 | -6/Cetus | Spotted Cetus Guard 14711 | -6/Cetus | Spotted Cetus Guard 14717 | -6/Cetus | Spotted Cetus Guard 14719 | -6/Cetus | Allies destroyed Cetus Guard 14721 | -6/Cetus | Allies destroyed Cetus Guard 14721 | -6/Cetus | Destroyed Cetus Guard 14721 | -6/Cetus | Destroyed Cetus Guard 14875 | -6/Cetus | Escorted A7 to Cetus Mainframe 14890 | -6/Cetus | Discovered exit to Factory (range 16) 14912 | -6/Cetus | Discovered new exit (range 15) 14918 | -6/Cetus | Spotted Cetus Guard 14929 | -6/Cetus | Entered Archives 14940 | -6/Archives | Unable to access archive contents 14942 | -6/Archives | Unable to access archive contents 14943 | -6/Archives | Discovered new exit (range 15) 14947 | -6/Archives | Entered Hub_04(d) 14959 | -6/Hub_04(d) | Discovered exit to Factory (range 21) 15005 | -6/Hub_04(d) | Entered Factory 15005 | -5/Factory | Evolved 2 slots: Propulsion x1, Utility x1 15282 | -5/Factory | Self-destructed Last Messages --------------- 15262_ Penetrated by Slug. 15263_ U-05 Engineer lays Concrete. 15265_ Penetrated by Slug. 15265_ Connecting with Fabricator... >>Force(Overload) EM_IMPRINTER_OVERLOAD 15265_ ALERT: Suspicious activity at Fabricator F001. Dispatching Investigation squad. 15266_ Fabricator zaps G-50 Soldier with an electromagnetic arc. 15266_ G-50 Soldier system terminally corrupted. [Achievement: Ride The Lightning] 15267_ Fabricator zaps H-66 Slayer with an electromagnetic arc. 15267_ H-66 Slayer system terminally corrupted. 15268_ W-25 Informer sends out distress signal. 15269_ Fabricator zaps R-10 Processor with an electromagnetic arc. 15277_ Cld. VTOL Module destroyed. 15277_ Cld. VTOL Module burned out. Map ----- +----------------------------------------------------+ | ######## #??##########??????????""T"" [[ / | | ## #??????????????????????""""" [[ # | | """ ## #????????????????????# ????# "" | | """ ## #????????????????????############### "" | | """ ## #??????????????????????????# ]## "" | | ## ##############?????????????# """ ## | | ## ^ ! #?????????????# "G # | | ## #?????????????# """ " | | ## ^ =^!! #?????????????# | | ######## =!] #?????????????#/ ! | | ???????# [! """ =! #?????????????###+### | | ??????## [! """ #???????????????# ### | | ####### [ """ #???????????????# #? | | A #???????????????# #?## | | ####### #??????????????## #### =% | | ??????########## #??????????????# | | ???????????????# #??????????????# | | ???????????????# #??????????????# ## | | ???????????????# #??????????????# %= #? | | ???????????????# #??????????????# "" ## | | ????????######## ################ """ ## | | ????????# A "F ## | | ????????# ^ """ ## | | ????????# "" ## | | ????????+ ################# ## | | ????????# # @ #???# "" ## | | ????????# # """ """ #???# "" #? | | ????????##### # """ """ #####^ """ ## | | ????????????# ####### """ """ +g """ | | ????????????# #?????# "" "" # """ | | ????????????# #?????# "" "" # | | ????????????# #?????# + | | ????????????# #?????# """ """ # | | ????????????# #?????# """ """ # | | ????######### #?????# """ """ # | | ????#! [ # #?????# "" "" #+#####"### | | ????# # ??????# "" "" #????? ? | | ????# # #?????# #????? # | | ????# # #?????#############????? + | | ????# # #??????????????????????? # | | ##########+## ### #????????????????? # | | w????????? # | | ##########+##+###### #????????????????? # | | ?????????# #?????????????????????? # | | ?????????#""" #??????????????????????#####???? | | ?????????#""" #??????????????????????????????? | | ?????????#""" #??????????????????????????????? | | ?????????# !#??????????????????????????????? | | ?????????#""" #??????????????????????????????? | | ?????????#""" #??????????????????????????????? | +----------------------------------------------------+ Best States ------------- Heat Dissipation 44 Energy Generation 18 Energy Capacity 310 Matter Stores 300 Matter Capacity 300 Sight Range 22 Terrain Scan Density 10 ECM Strength 2 Jamming Range 12 Armor Coverage 450 Evasion (%) 65 Targeting Accuracy 13 Recoil Reduction 2 Offensive Hacking 64 Defensive Hacking 10 Trap Extractor Capacity 6 Item Schematics ----------------- Hacking Suite | -9/Materials | Scanalyzed Imp. Hacking Suite | -7/Factory | Hacked Cld. VTOL Module | -7/Factory | Scanalyzed Robot Schematics ------------------ R-10 Processor | -6/Hub_04(d) | Hacked Fabricated ------------ Cld. VTOL Module | x1 | -7/Factory Imp. Hacking Suite | x1 | -7/Factory Imp. Hacking Suite | x1 | -7/Factory Imp. Hacking Suite | x1 | -7/Factory Plasma Cannon | x2 | -7/Factory | Preloaded Imp. Hacking Suite | x1 | -7/Factory Cld. VTOL Module | x1 | -6/Factory Alien Tech Used ----------------- None Achievements -------------- Prison Break Ride The Lightning Challenges ------------ None Game ------ Seed HugeReactionClaws Manual? 0 Play Time 05:05:26 Cumulative 123.4 hours Start 2024.12.09 @ 11:04:05 End 2024.12.10 @ 15:02:03 Sessions 5 Manual Loads 0 Difficulty Rogue Special Mode None Game No. 121 Rogue 121 Adventurer 0 Explorer 0 Win Type - Total 1 Types 1/0/0/0/0/0/0/0/0 Lore% 20 Gallery% 47 Achievement% 42 Wizard Run 0 Options --------- Layout 2 ASCII 0 Keyboard 1 Movement Arrows Keybinds 0 Fullscreen 2 Font 16/SmallcapsGlow Map View 55x47 Zoom Use 0% Tactical HUD 1 Map Filters NONE Filters NONE Steam 1 RUN: 1790e65a-743c-49eb-bbc2-b9b50344bf63